Workbook

Sheet 2022年2月
A1: 陆 丰 市 2022 年 2 月 财 政 预 算 收 入 完 成 情 况 表
A2: 2022-02-28 | L2: 单位：万元
B3: 年 度 | C3: 累 计 | D3: 占 年 | E3: 上 年 | F3: 比上年 | G3: 比上年 | H3: 本 月 | I3: 上 年 | J3: 比上年 | K3: 比上年
A4: 收 入 项 目 | B4: 预 算 | C4: 完 成 | D4: 预 算 | E4: 同 期 | F4: 同期增 | G4: 同期增 | H4: 完 成 | I4: 同 月 | J4: 同月增 | K4: 同月增 | L4: 备 注
B5: 数 | C5: 数 | D5: % | E5: 完 成 | F5: 减额 | G5: (减)% | H5: 数 | I5: 完 成 | J5: 减额 | K5: (减)%
A6: （一）税收收入 | C6: =SUM(C7:C20) -> 9,858 | E6: =SUM(E7:E20) -> 9,607 | F6: =C6-E6 -> 251 | G6: =F6/E6*100 -> 2.6 | H6: =SUM(H7:H20) -> 2,608 | I6: =SUM(I7:I20) -> 2952 | J6: =H6-I6 -> -344 | K6: =J6/I6*100 -> -11.7
A7: 1、增值税 | C7: 3,215 | E7: 2,564 | F7: =C7-E7 -> 651 | G7: =F7/E7*100 -> 25.4 | H7: 1,090 | I7: 797 | J7: =H7-I7 -> 293 | K7: =J7/I7*100 -> 36.8
A8: 2、企业所得税 | C8: 1,316 | E8: 2,598 | F8: =C8-E8 -> -1,282 | G8: =F8/E8*100 -> -49.3 | H8: 14 | I8: 23 | J8: =H8-I8 -> -9 | K8: =J8/I8*100 -> -39.1
A9: 3、个人所得税 | C9: 224 | E9: 308 | F9: =C9-E9 -> -84 | G9: =F9/E9*100 -> -27.3 | H9: 77 | I9: 83 | J9: =H9-I9 -> -6 | K9: =J9/I9*100 -> -7.2
A10: 4、资源税 | C10: 27 | E10: 18 | F10: =C10-E10 -> 9 | G10: =F10/E10*100 -> 50.0 | H10: 6 | I10: 7 | J10: =H10-I10 -> -1 | K10: =J10/I10*100 -> -14.3
A11: 5、城市维护建设税 | C11: 1,077 | E11: 988 | F11: =C11-E11 -> 89 | G11: =F11/E11*100 -> 9.0 | H11: 578 | I11: 531 | J11: =H11-I11 -> 47 | K11: =J11/I11*100 -> 8.9
A12: 6、房产税 | C12: 560 | E12: 67 | F12: =C12-E12 -> 493 | G12: =F12/E12*100 -> 735.8 | H12: 15 | I12: 55 | J12: =H12-I12 -> -40 | K12: =J12/I12*100 -> -72.7
A13: 7、印花税 | C13: 306 | E13: 215 | F13: =C13-E13 -> 91 | G13: =F13/E13*100 -> 42.3 | H13: 117 | I13: 59 | J13: =H13-I13 -> 58 | K13: =J13/I13*100 -> 98.3
A14: 8、城镇土地使用税 | C14: 207 | E14: 74 | F14: =C14-E14 -> 133 | G14: =F14/E14*100 -> 179.7 | H14: 6 | I14: 53 | J14: =H14-I14 -> -47 | K14: =J14/I14*100 -> -88.7
A15: 9、土地增值税 | C15: 1,845 | E15: 815 | F15: =C15-E15 -> 1,030 | G15: =F15/E15*100 -> 126.4 | H15: 226 | I15: 313 | J15: =H15-I15 -> -87 | K15: =J15/I15*100 -> -27.8
A16: 10、车船使用税 | C16: 339 | E16: 296 | F16: =C16-E16 -> 43 | G16: =F16/E16*100 -> 14.5 | H16: 195 | I16: 170 | J16: =H16-I16 -> 25 | K16: =J16/I16*100 -> 14.7
A17: 11、环保税 | C17: 83 | E17: 31 | F17: =C17-E17 -> 52 | G17: =F17/E17*100 -> 167.7 | J17: =H17-I17 -> 0 | K17: =J17/I17*100 -> 
A18: 12、耕地占用税 | E18: 504 | F18: =C18-E18 -> -504 | G18: =F18/E18*100 -> -100.0 | I18: 474 | J18: =H18-I18 -> -474 | K18: =J18/I18*100 -> -100.0
A19: 13、契 税 | C19: 659 | E19: 1,129 | F19: =C19-E19 -> -470 | G19: =F19/E19*100 -> -41.6 | H19: 284 | I19: 387 | J19: =H19-I19 -> -103 | K19: =J19/I19*100 -> -26.6
A20: 14、其他税收收入
A21: （二）非税收入 | C21: =SUM(C22:C29) -> 6,138 | E21: =E22+E23+E24+E25+E26+E27+E28+E29 -> 4,688 | F21: =C21-E21 -> 1,450 | G21: =F21/E21*100 -> 30.9 | H21: =H22+H23+H24+H25+H26+H27+H28+H29 -> 3,513 | I21: =I22+I23+I24+I25+I26+I27+I28+I29 -> 2649 | J21: =H21-I21 -> 864 | K21: =J21/I21*100 -> 32.6
A22: 1、专项收入 | C22: 778 | E22: 650 | F22: =C22-E22 -> 128 | G22: =F22/E22*100 -> 19.7 | H22: 405 | I22: 339 | J22: =H22-I22 -> 66 | K22: =J22/I22*100 -> 19.5
A23: 2、行政事业性收费收入 | C23: 1,154 | E23: 1,473 | F23: =C23-E23 -> -319 | G23: =F23/E23*100 -> -21.7 | H23: 923 | I23: 1,457 | J23: =H23-I23 -> -534 | K23: =J23/I23*100 -> -36.7
A24: 3、罚没收入 | C24: 1,366 | E24: 574 | F24: =C24-E24 -> 792 | G24: =F24/E24*100 -> 138.0 | H24: 1,189 | I24: 513 | J24: =H24-I24 -> 676 | K24: =J24/I24*100 -> 131.8
A25: 4、国有资源（资产）有偿使用收入 | C25: 2,378 | E25: 1,977 | F25: =C25-E25 -> 401 | G25: =F25/E25*100 -> 20.3 | H25: 791 | I25: 340 | J25: =H25-I25 -> 451 | K25: =J25/I25*100 -> 132.6
A26: 5、政府住房基金收入
A27: 6、捐赠收入 | C27: 205 | F27: =C27-E27 -> 205 | H27: 205
A28: 7、其他收入 | C28: 257 | E28: 14 | F28: =C28-E28 -> 243 | G28: =F28/E28*100 -> 1,735.7 | J28: =H28-I28 -> 0 | K28: =J28/I28*100 -> 
A29: 8、国有资本经营收入
A30: 一、一般公共预算收入 | C30: =C6+C21 -> 15,996 | E30: =E6+E21 -> 14,295 | F30: =C30-E30 -> 1,701 | G30: =F30/E30*100 -> 11.9 | H30: =H6+H21 -> 6,121 | I30: =I6+I21 -> 5601 | J30: =H30-I30 -> 520 | K30: =J30/I30*100 -> 9.3
A31: 二、政府性基金预算收入小计 | C31: 3,047 | E31: 35,706 | F31: =C31-E31 -> -32,659 | G31: =F31/E31*100 -> -91.5 | H31: 1,070 | I31: 35107 | J31: =H31-I31 -> -34,037 | K31: =J31/I31*100 -> -97.0
A32: 其中：国有土地使用权出让收入 | C32: 2,350 | E32: 35,091 | F32: =C32-E32 -> -32,741 | G32: =F32/E32*100 -> -93.3 | H32: 503 | I32: 34601 | J32: =H32-I32 -> -34,098 | K32: =J32/I32*100 -> -98.5
A33: 三、国有资本经营收入小计 | C33: 20 | J33: =H33-I33 -> 0
A34: 收入合计 | C34: =C30+C31+C33 -> 19,063 | E34: =E30+E31+E33 -> 50,001 | F34: =C34-E34 -> -30,938 | G34: =F34/E34*100 -> -61.9 | H34: =H30+H31+H33 -> 7,191 | I34: =I30+I31+I33 -> 40708 | J34: =H34-I34 -> -33,517 | K34: =J34/I34*100 -> -82.3
A35: 注：2022年度预算草案还未通过人大决议，故本表没有反映年度预算数和占比数。 | L35: 陆丰市财政局国库股

Sheet Sheet1

Sheet Sheet2

Sheet Sheet3
